Cogmind - Beta 17 @@@ ROGUE MODE // 2026.07.11 @ 17:01:23 Player: unq Result: Self-destructed Performance ------------- Evolutions (5) 2500 Regions Visited (10) 2000 Robots Destroyed (88) 440 Value Destroyed (3012) 3012 Prototype IDs (40) 800 Alien Tech Used (0) 0 Bonus (583) 583 TOTAL SCORE: 9335 Bonus ------- Registered with UFD 300 Met Data Miner 300 Friendly Fire -17 Cogmind --------- Core Integrity 369/1000 Matter 268/300 Energy 12/100 System Corruption 9% Temperature Cool (84) Movement Core (850) Ox16 Location -5/Factory Parts ------- > --- POWER (2+1) ------ (None) > --- PROPULSION (6) --- Combat Airjet > --- UTILITY (7+1) ---- High-capacity Storage Unit Enhanced Optical Array (+) Improved Signal Interpreter Rainbow Chip > --- WEAPON (2) ------- Heavy Phase Cannon > --- INVENTORY (20) --- Medium Treads Improved Cryofiber Web Coolant Injector High-capacity Matter Pod (200) Advanced Sensor Array Experimental Signal Interpreter Stasis Canceller Improved Transmission Jammer Wave Gun Wave Gun Improved Remote Datajack Plasma Cutter CPS Tube (2) Peak State ------------ > --- POWER ------------ Light Nuclear Core Micro Nuclear Core > --- PROPULSION ------- Armored Leg Armored Leg Armored Leg Armored Leg Armored Leg Combat Airjet > --- UTILITY ---------- High-capacity Storage Unit Enhanced Optical Array Advanced Signal Interpreter Advanced Targeting Computer Enhanced Scrap Shield Rainbow Chip > --- WEAPON ----------- Junk Cannon Makeshift Sword > --- INVENTORY -------- Light Nuclear Core Armored Leg Armored Leg Airjet Combat Airjet Combat Airjet Gravmag Array Advanced Heat Sink High-capacity Matter Pod Advanced Sensor Array Experimental Signal Interpreter Improved Terrain Scanner Improved Light Armor Plating Gauss Rifle Gauss Rifle Coil Gun Improved Grenade Launcher Plasma Cutter CPS Tube [Rating: 100] Favorites ----------- Power Light Ion Engine Engine Light Ion Engine Power Core Micro Nuclear Core Reactor Cold Fusion Reactor Propulsion Armored Leg Treads Light Treads Leg Armored Leg Wheel Compact Wheel Hover Unit Combat Airjet Utility High-capacity Storage Unit Device Advanced Sensor Array Storage High-capacity Storage Unit Processor Enhanced Optical Array Hackware Advanced Hacking Suite Protection Hardened Light Armor Plating Weapon Makeshift Sword Energy Gun Medium Laser Energy Cannon Beam Cannon Ballistic Gun Gauss Rifle Ballistic Cannon Hypervelocity Gauss Cannon Launcher Improved Grenade Launcher Special Weapon Junk Cannon Slashing Weapon Makeshift Sword Build | -11 -10 -10 -8 -8 -6 -6 -6 -6 -5 -5 ------- Run | Yrd Mat Sub Rec Scr Fac Low Low Dat Pro Fac Slots Evolved 10 | . . . . . 8 . . . . 2 Power 1 | . . . . . 1 . . . . . Propulsion 4 | . . . . . 3 . . . . 1 Utility 5 | . . . . . 4 . . . . 1 Weapon . | . . . . . . . . . . . Parts Attached 103 | 7 7 12 4 12 27 3 3 . 8 20 Power 16 | 1 2 1 . 3 5 . . . 1 3 Engine 8 | 1 1 1 . 2 2 . . . . 1 Core 7 | . 1 . . 1 2 . . . 1 2 Reactor 1 | . . . . . 1 . . . . . Propulsion 27 | 2 . 3 1 4 6 . 2 . 4 5 Treads 4 | 2 . 2 . . . . . . . . Leg 7 | . . . . . 5 . 2 . . . Wheel 9 | . . 1 1 4 . . . . . 3 Hover 7 | . . . . . 1 . . . 4 2 Flight . | . . . . . . . . . . . Utility 37 | 2 2 5 1 1 13 3 . . 1 9 Device 12 | 1 . 3 . . 3 . . . . 5 Storage 4 | 1 1 . . . 1 1 . . . . Processor 10 | . . . . . 9 . . . . 1 Hackware 1 | . . . . . . . . . . 1 Protection 10 | . 1 2 1 1 . 2 . . 1 2 Artifact . | . . . . . . . . . . . Weapon 23 | 2 3 3 2 4 3 . 1 . 2 3 Energy Gun 1 | 1 . . . . . . . . . . Energy Cannon 3 | . 1 1 . . . . . . . 1 Ballistic Gun 13 | 1 1 2 2 3 2 . 1 . 1 . Ballistic Cannon 1 | . . . . . . . . . . 1 Launcher 1 | . . . . . . . . . 1 . Special Weapon 2 | . 1 . . 1 . . . . . . Impact Weapon . | . . . . . . . . . . . Slashing Weapon 2 | . . . . . 1 . . . . 1 Piercing Weapon . | . . . . . . . . . . . Special Melee Weapon . | . . . . . . . . . . . Unidentified Prototypes 4 | . . 1 . 1 1 1 . . . . Corrupted Parts 1 | . . . . . . . . . 1 . System Corruption 1 | . . . . . . . . . 1 . Parts Lost 46 | . 1 7 . . 1 . 1 . 16 20 Power 7 | . . 1 . . . . . . 3 3 Propulsion 14 | . . 3 . . . . . . 5 6 Utility 14 | . . 1 . . 1 . 1 . 5 6 Weapon 11 | . 1 2 . . . . . . 3 5 Highest Loss Streak 13 | . 1 2 . . 1 . 1 . 13 12 To Critical Strikes 1 | . . . . . . . . . . 1 Average Backups 17 | 2 13 18 19 18 18 17 18 19 17 17 Power 1 | . . 1 2 1 1 1 1 1 . . Propulsion 4 | 1 2 2 4 3 4 6 6 6 5 3 Utility 6 | . 6 9 8 7 5 4 5 5 4 6 Weapon 4 | . 3 3 3 5 5 4 4 5 3 4 Tool/Special . | . . . . . . . . . . . Unused Backups 47 | . 5 8 1 12 5 . 1 . . 15 Power 3 | . . . . 2 1 . . . . . Propulsion 10 | . 2 2 . 4 1 . . . . 1 Utility 21 | . 3 4 . 4 2 . 1 . . 7 Weapon 9 | . . 2 . 2 1 . . . . 4 Tool/Special 4 | . . . 1 . . . . . . 3 Average Slot Usage (%) 91 | . 99 99 100 99 88 88 89 84 83 64 Engine 7 | . 9 13 14 13 6 . . . . 2 Core 3 | . 4 . . . 2 10 10 10 7 4 Treads 7 | . 28 27 1 . . . . . . . Leg 10 | . . . . . 25 26 26 26 20 . Wheel 6 | . . . 26 28 1 . . . . . Hover 3 | . . . . . 1 5 5 5 7 18 Device 6 | . 1 8 . . 6 9 12 15 12 7 Storage 9 | . 14 14 14 14 5 5 5 5 5 5 Processor 7 | . . . . . 18 15 15 15 13 13 Protection 6 | . 12 5 14 14 4 4 2 . . 3 Energy Cannon 3 | . 5 5 21 3 . . . . . 1 Ballistic Gun 11 | . 13 20 6 23 4 . 1 . 7 . Special Weapon 2 | . . 2 . . 2 5 4 . . 2 Slashing Weapon 1 | . . . . . 3 5 5 5 3 . Peak Build Rating 100 | 7 10 18 16 28 98 100 100 97 97 98 Average Rating 50 | 5 8 14 14 20 80 96 96 85 85 77 On Entrance 46 | . 7 9 13 16 24 97 96 97 97 51 Avg Prop Armor Cover (%) 1 | . . 9 4 3 1 1 1 2 1 7 Naked Turns . | . . . . . . . . . . . Heaviest Build 87 | 14 53 54 54 68 87 82 84 70 75 83 Greatest Support 80 | 40 40 40 36 36 80 80 80 80 80 65 Greatest Overweight (x) 4 | . 1 2 3 3 4 1 1 . 1 1 Average Overweight (x) . | . . 1 1 2 . . . . . . Largest Inventory Capacity 20 | 8 20 20 20 20 20 20 20 20 20 20 Average Capacity 19 | 7 15 20 20 20 20 20 20 20 20 20 Most Carried 20 | 5 20 20 20 20 20 20 20 20 20 20 Average Carried 18 | 2 13 19 19 19 19 19 19 20 18 17 Final Capacity 20 | 8 20 20 20 20 20 20 20 20 20 20 Final Carried 20 | 5 20 20 20 20 20 20 20 20 16 13 Class Distribution -------------------- 49% | Mutant 15% | Assassin 11% | Derelict-Mutant 9% | Scavenger-Assassin 6% | Scavenger-Mutant 4% | Derelict-Assassin Dominant Class ---------------- Mutant | -10/Materials Mutant | -10/Subcaves Mutant | -8/Recycling Mutant | -8/Scraptown Derelict-Mutant | -6/Factory Scavenger-Assassin | -6/Lower Caves Assassin | -6/Lower Caves Assassin | -6/Data Miner Assassin | -5/Proximity Caves Mutant | -5/Factory Resources | -11 -10 -10 -8 -8 -6 -6 -6 -6 -5 -5 ----------- Run | Yrd Mat Sub Rec Scr Fac Low Low Dat Pro Fac Matter Collected 4624 | 180 696 557 58 160 1049 161 236 . 857 670 Remotely . | . . . . . . . . . . . Salvage Created 3931 | 51 514 355 400 . 1042 181 114 . 685 589 Parts 169 | 9 33 18 18 . 42 4 3 . 23 19 Haulers Intercepted 6 | . 2 . . . 3 . . . . 1 Recyclers Shooed 8 | . 2 . 3 . 2 . . . . 1 Parts Field Recycled . | . . . . . . . . . . . Retrieved Matter . | . . . . . . . . . . . Parts Self-Destructed 25 | . . 7 . . . . 3 . 15 . Prevented 4 | . . . . . . 4 . . . . Parts Restored . | . . . . . . . . . . . Kills | -11 -10 -10 -8 -8 -6 -6 -6 -6 -5 -5 ------- Run | Yrd Mat Sub Rec Scr Fac Low Low Dat Pro Fac Combat Hostiles Destroyed 62 | . 9 9 2 . 17 3 1 . 16 5 Melee 1 | . . . . . 1 . . . . . Guns 32 | . 7 7 2 . 9 . 1 . 6 . Cannons 11 | . 1 2 . . 3 . . . 1 4 AOE 8 | . . . . . . . . . 8 . Classes Destroyed 17 | 1 7 1 1 . 1 . 1 . 5 . Worker 2 | . 1 . . . 1 . . . . . Tunneler 4 | 3 . . . . . . . . . 1 Hauler 6 | . 2 . . . 3 . . . . 1 Recycler 7 | . 1 . 4 . 1 . . . . 1 Mechanic 2 | . . . . . . . . . 1 1 Drone 2 | . . . . . . . . . 2 . Turret 2 | . . 2 . . . . . . . . Watcher 3 | . 2 . . . . . . . . 1 Swarmer 18 | . 3 4 . . 7 . . . 4 . Grunt 11 | . 3 . . . 2 3 . . 3 . Brawler 2 | . . . . . . . . . 2 . Duelist 2 | . . . . . . . . . 2 . Sentry 8 | . . . 2 . 2 . . . 2 2 Programmer 10 | . . . . . 6 . . . 1 3 Behemoth 1 | . . . . . . . 1 . . . Subdweller 8 | . 3 5 . . . . . . . . Samaritan 1 | . . . . . . . . . 1 . Best Kill Streak 6 | 2 3 3 3 . 4 3 1 . 6 2 Combat Bots Only 5 | . 3 2 2 . 4 3 1 . 5 2 Max Kills in Single Turn 2 | 1 1 1 1 . 1 1 1 . 2 1 Gunslinging . | . . . . . . . . . . . Exploded 2 | . . . . . . . . . 2 . Melee 1 | . . . . . 1 . . . . . Uniques/NPCs Destroyed . | . . . . . . . . . . . Combat | -11 -10 -10 -8 -8 -6 -6 -6 -6 -5 -5 -------- Run | Yrd Mat Sub Rec Scr Fac Low Low Dat Pro Fac Hostile Shots Fired 687 | . 39 98 4 . 172 14 60 . 130 170 Missed 203 | . 12 39 . . 54 3 16 . 43 36 Hits 484 | . 27 59 4 . 118 11 44 . 87 134 Melee 7 | . . . . . . . . . 7 . Projectile 477 | . 27 59 4 . 118 11 44 . 80 134 AOE 3 | . . . . . 1 . . . . 2 Critical Strikes 21 | . . 3 . . 3 1 . . 5 9 Actively Blocked 1 | . . . . . . . . . . 1 Part Disruptions 1 | . . . . . . . . . 1 . Damage Taken 8782 | . 385 979 57 . 1307 168 1030 . 2189 2667 Core 1279 | . 26 59 . . 230 14 20 . 299 631 Absorbed by Shields 267 | . . . . . 191 40 . . . 36 Redirected to Shielding 105 | . . . . . . . . . . 105 Ignored by Resistances 174 | . . . 4 . . . . . . 170 Regen/Repaired (Parts) 89 | . . . . . . . . . . 89 Core Remaining (%) 66 | 100 . . . 66 . . . . 33 . Volleys Fired 382 | 7 54 77 13 . 70 6 18 . 58 79 Largest 2 | 2 2 2 2 . 2 1 2 . 2 2 Hottest 160 | 70 100 160 120 . 56 . 58 . 64 141 Shots Fired 604 | 14 104 122 26 . 112 6 27 . 92 101 Gun 374 | 14 86 66 4 . 84 . 18 . 76 26 Cannon 112 | . 15 25 22 . . . . . . 50 Launcher 10 | . . . . . . . . . 10 . Special 108 | . 3 31 . . 28 6 9 . 6 25 Kinetic 353 | 7 51 66 4 . 84 . 18 . 76 47 Thermal 167 | 7 53 56 22 . . . . . . 29 Explosive 10 | . . . . . . . . . 10 . Electromagnetic . | . . . . . . . . . . . Impact 74 | . . . . . 28 6 9 . 6 25 Robot Hit Streak 27 | 4 8 27 4 . 10 15 21 . 14 19 Robot Miss Streak 8 | 1 4 2 3 . 3 . 4 . 4 8 Penetration Max 1 | . . . . . 1 . . . 1 1 Secondary Targets 4 | . . 1 . . 3 . . . . . Max Gunslinging Chain 1 | . . 1 . . 1 . . . . . Shots Hit Robots 365 | 9 56 65 13 . 88 6 21 . 51 56 Core Hits 127 | 4 25 17 6 . 23 . 4 . 34 14 Critical Kills 8 | . 2 1 . . 1 . . . 1 3 Critical Parts Destroyed 19 | 1 . . . . 6 1 . . . 11 Critical Strikes 35 | 1 6 1 . . 8 1 . . 1 17 Burn 4 | . 4 . . . . . . . . . Meltdown 3 | . 1 1 . . . . . . . 1 Destroy 13 | 1 1 . . . 1 . . . . 10 Smash 11 | . . . . . 6 1 . . 1 3 Sever 4 | . . . . . 1 . . . . 3 Melee Attacks 42 | . . . . . 20 3 2 . 9 8 Impact . | . . . . . . . . . . . Slashing 42 | . . . . . 20 3 2 . 9 8 Piercing . | . . . . . . . . . . . Sneak Attacks 4 | . . . . . 3 . . . 1 . Combat Hostiles . | . . . . . . . . . . . Follow-up Attacks . | . . . . . . . . . . . Damage Inflicted 10838 | 94 719 1048 275 . 3183 354 826 . 2141 2198 Guns 4098 | 94 577 800 46 . 1170 . 337 . 836 238 Cannons 1425 | . 138 246 227 . . . . . . 814 Explosions 934 | . . . . . . . . . 934 . Melee 908 | . . . . . 428 37 72 . 79 292 Ramming 39 | . 4 2 2 . 31 . . . . . Kinetic 4080 | 33 375 800 46 . 1170 . 337 . 836 483 Thermal 1443 | 61 340 246 227 . . . . . . 569 Explosive 934 | . . . . . . . . . 934 . Electromagnetic . | . . . . . . . . . . . Impact 3434 | . . . . . 1554 317 417 . 292 854 Slashing 908 | . . . . . 428 37 72 . 79 292 Piercing . | . . . . . . . . . . . Highest Corruption 10 | . . . . . 3 3 3 3 10 9 Average Corruption 3 | . . . . . 1 3 3 3 5 5 Corruption Purged . | . . . . . . . . . . . Corruption Blocked . | . . . . . . . . . . . Effects 100 | . . . . . 17 19 19 1 32 12 Message Errors 28 | . . . . . 5 6 6 . 8 3 Matter Fused 19 | . . . . . 3 4 5 . 6 1 Heat Flow Errors 16 | . . . . . 4 2 4 . 6 . Energy Discharges 11 | . . . . . 2 4 1 . 4 . Parts Rejected 3 | . . . . . . . . . 1 2 Parts Fused 1 | . . . . . . 1 . . . . Data Loss (minor) 12 | . . . . . 3 1 2 1 2 3 Data Loss (major) 4 | . . . . . . 1 . . 3 . Misfires 3 | . . . . . . . . . 1 2 Alerts 1 | . . . . . . . 1 . . . Weapon Failures 2 | . . . . . . . . . 1 1 Overload Shots . | . . . . . . . . . . . Overflow Damage 1639 | . . 7 10 . 886 86 52 . 117 481 Projectiles 1444 | . . 7 10 . 777 86 . . 83 481 Explosions 34 | . . . . . . . . . 34 . Melee 161 | . . . . . 109 . 52 . . . Knockbacks 17 | . . . . . 5 2 . . 1 9 Impact 12 | . . . . . 5 2 . . 1 4 Kinetic 5 | . . . . . . . . . . 5 Secondary . | . . . . . . . . . . . Self-Inflicted Damage 135 | . . . 1 . . . . . 134 . Shots 3 | . . . . . . . . . 3 . Rammed 6 | . 3 1 2 . . . . . . . Targets Rammed 10 | . 3 1 2 . 4 . . . . . Kicked 4 | . . . . . 4 . . . . . Crushed . | . . . . . . . . . . . Highest Temperature 435 | 90 193 435 191 . 371 242 197 . 252 96 Average Temperature 87 | 43 69 101 58 . 185 102 69 . 107 47 Received Heat Transfer 2765 | . 93 1107 18 . 159 81 120 . 426 761 Effects 3 | . . . . . 3 . . . . . Shutdowns 1 | . . . . . 1 . . . . . Matter Decay 1 | . . . . . 1 . . . . . Damage (minor) 1 | . . . . . 1 . . . . . Siege Activations . | . . . . . . . . . . . Martial Activations . | . . . . . . . . . . . Shielding Activations . | . . . . . . . . . . . Robots Disrupted . | . . . . . . . . . . . Combat Hostiles . | . . . . . . . . . . . Robots Corrupted 11 | . . . . . 5 3 . . 1 2 Combat Hostiles 8 | . . . . . 4 3 . . 1 . Parts Fried 13 | . . . . . 7 1 . . . 5 Impact Corruptions 43 | . . . . . 22 3 . . 4 14 Robots Melted 3 | . 1 1 . . . . . . . 1 Combat Hostiles 2 | . 1 . . . . . . . . 1 Parts Melted 9 | . 5 2 . . . . . . . 2 Heat Transferred 2923 | 185 1184 518 481 . . . . . . 555 Parts Sabotaged . | . . . . . . . . . . . Parts Stolen . | . . . . . . . . . . . Parts Stripped . | . . . . . . . . . . . Power Chain Reactions . | . . . . . . . . . . . Alert | -11 -10 -10 -8 -8 -6 -6 -6 -6 -5 -5 ------- Run | Yrd Mat Sub Rec Scr Fac Low Low Dat Pro Fac Maximum Alert Level 2 | . . . . . 1 . . . . 2 Low Security (%) 83 | 100 100 . 100 . 76 . . . . 73 Level 1 13 | . . . . . 23 . . . . 15 Level 2 2 | . . . . . . . . . . 10 Level 3 . | . . . . . . . . . . . Level 4 . | . . . . . . . . . . . Level 5 . | . . . . . . . . . . . High Security . | . . . . . . . . . . . Max Security . | . . . . . . . . . . . Peak Influence 450 | 10 69 . 111 . 307 . . . . 450 Initial 450 | . . . 81 . . . . . . 450 Average 85 | . 11 . 39 . 92 . . . . 163 Influence Increases 2500 | 15 234 210 218 . 666 70 35 . 325 727 Destroy 0b10 Robot/C 1080 | . 120 120 40 . 340 60 20 . 280 100 Destroy 0b10 Robot/NC 135 | 15 30 . 20 . 25 . 5 . 15 25 Destroy Leader 236 | . 38 . . . 114 10 10 . 30 34 Successful Hack 109 | . 14 . 7 . 65 . . . . 23 Select Force Hacks 150 | . . . 150 . . . . . . . Disable Machine 90 | . 15 . . . 60 . . . . 15 Destroy Structure 70 | . 2 . 1 . 17 . . . . 50 Advance Influence 450 | . . . . . . . . . . 450 Lose Combat Pursuer 180 | . 15 90 . . 45 . . . . 30 Influence Decreases 2500 | 15 234 39 389 . 396 340 35 . 325 727 Entered New Map 190 | . . . 90 . . 100 . . . . Time Decay 1853 | 15 234 9 238 . 386 240 35 . 218 478 Search Patrol Dispatched 100 | . . . . . . . . . . 100 Lost Part 274 | . . 30 . . 10 . . . 95 139 Lost Ally 22 | . . . . . . . . . 12 10 Purge Threat 61 | . . . 61 . . . . . . . Squads Dispatched 13 | . 1 . . . 7 . . . 1 4 Investigation . | . . . . . . . . . . . Extermination 7 | . . . . . 5 . . . . 2 Reinforcement 4 | . 1 . . . 1 . . . . 2 Assault 1 | . . . . . . . . . 1 . Garrison 1 | . . . . . 1 . . . . . Intercept . | . . . . . . . . . . . Searches Triggered 1 | . . . . . . . . . . 1 Construction Impeded 2 | . . . . . 1 . . . . 1 Haulers Reinforced . | . . . . . . . . . . . Active Scanning Responses . | . . . . . . . . . . . Cargo Convoy Interrupts . | . . . . . . . . . . . Stealth | -11 -10 -10 -8 -8 -6 -6 -6 -6 -5 -5 --------- Run | Yrd Mat Sub Rec Scr Fac Low Low Dat Pro Fac Distress Signals 5 | . 1 . . . . . . . 2 2 Communications Jammed . | . . . . . . . . . . . Distress Signals . | . . . . . . . . . . . Times Spotted 95 | . 17 14 2 . 23 3 1 . 19 16 Peak Tracking Total 6 | . 3 4 1 . 4 3 1 . 6 6 Tactical Retreats 9 | . 1 4 . . 2 . . . . 2 Traps | -11 -10 -10 -8 -8 -6 -6 -6 -6 -5 -5 ------- Run | Yrd Mat Sub Rec Scr Fac Low Low Dat Pro Fac Traps Triggered 3 | . . 1 . . 2 . . . . . Indirectly . | . . . . . . . . . . . Trap Hack Attempts . | . . . . . . . . . . . Triggered . | . . . . . . . . . . . Disarmed . | . . . . . . . . . . . Reprogrammed . | . . . . . . . . . . . Reused . | . . . . . . . . . . . Traps Extracted . | . . . . . . . . . . . Installed . | . . . . . . . . . . . Triggered . | . . . . . . . . . . . Machines | -11 -10 -10 -8 -8 -6 -6 -6 -6 -5 -5 ---------- Run | Yrd Mat Sub Rec Scr Fac Low Low Dat Pro Fac Machines Disabled 9 | . 1 3 . . 4 . . . . 1 Max in Single Turn 1 | . 1 1 . . 1 . . . . 1 Machines Repaired . | . . . . . . . . . . . Machines Dismantled . | . . . . . . . . . . . Machines Sabotaged . | . . . . . . . . . . . Overloaded Fab Kills . | . . . . . . . . . . . Hacking | -11 -10 -10 -8 -8 -6 -6 -6 -6 -5 -5 --------- Run | Yrd Mat Sub Rec Scr Fac Low Low Dat Pro Fac Machines Accessed 37 | . 4 2 11 2 8 1 . 4 . 5 Terminals 19 | . 4 . 6 . 5 . . . . 4 Fabricators 1 | . . . . . 1 . . . . . Repair Stations 2 | . . . . . 1 . . . . 1 Recycling Units 6 | . . . 5 . 1 . . . . . Scanalyzers . | . . . . . . . . . . . Garrison Access . | . . . . . . . . . . . Total Hacks 85 | . 4 5 18 5 13 1 . 29 . 10 Successful 68 | . 4 5 9 5 10 1 . 29 . 5 Failed 17 | . . . 9 . 3 . . . . 5 Catastrophic 2 | . . . . . 1 . . . . 1 Database Lockouts . | . . . . . . . . . . . Manual 21 | . . . 12 . 3 . . . . 6 Terminals 32 | . 4 . 11 . 9 . . . . 8 Fabricators 1 | . . . . . 1 . . . . . Repair Stations 4 | . . . . . 2 . . . . 2 Recycling Units 8 | . . . 7 . 1 . . . . . Scanalyzers . | . . . . . . . . . . . Garrison Access . | . . . . . . . . . . . Terminal Hacks 54 | . 4 5 4 5 4 1 . 29 . 2 Record 20 | . . 4 . 5 . . . 11 . . Part Schematic 11 | . . . 2 . . . . 9 . . Robot Schematic 6 | . . . . . . . . 6 . . Prototype ID Bank 6 | . 2 . . . 1 . . 3 . . Open Door 1 | . . . . . . 1 . . . . Open DSF 1 | . . . . . 1 . . . . . Unreport Threat 2 | . . . 2 . . . . . . . Locate Traps 3 | . 1 . . . 1 . . . . 1 Hauler Manifests 3 | . 1 . . . 1 . . . . 1 Proto ID Catalog 1 | . . 1 . . . . . . . . Fabricator Hacks 1 | . . . . . 1 . . . . . Network Status 1 | . . . . . 1 . . . . . Repair Station Hacks 3 | . . . . . 1 . . . . 2 Scan Component 2 | . . . . . 1 . . . . 1 Repair 1 | . . . . . . . . . . 1 Recycling Unit Hacks 1 | . . . . . 1 . . . . . Retrieve Components 1 | . . . . . 1 . . . . . Scanalyzer . | . . . . . . . . . . . Garrison Access Hacks . | . . . . . . . . . . . Unauthorized Hacks 9 | . . . 5 . 3 . . . . 1 Terminals 4 | . . . . . 3 . . . . 1 Botnet 4 | . . . . . 3 . . . . 1 Fabricators . | . . . . . . . . . . . Repair Stations . | . . . . . . . . . . . Recycling Units 5 | . . . 5 . . . . . . . Tunnel 5 | . . . 5 . . . . . . . Scanalyzers . | . . . . . . . . . . . Garrison Access . | . . . . . . . . . . . Data Cores Recovered . | . . . . . . . . . . . Used . | . . . . . . . . . . . Hacking Detections 13 | . 2 . 4 . 3 . . . . 4 Full Trace Events 2 | . . . 2 . . . . . . . Feedback Events . | . . . . . . . . . . . Feedback Blocked . | . . . . . . . . . . . Robot Schematics Acquired 6 | . . . . . . . . 6 . . Robots Built . | . . . . . . . . . . . Authchips . | . . . . . . . . . . . Time . | . . . . . . . . . . . Total Robot Build Rating . | . . . . . . . . . . . Part Schematics Acquired 11 | . . . 2 . . . . 9 . . Parts Built . | . . . . . . . . . . . Authchips . | . . . . . . . . . . . Time . | . . . . . . . . . . . Total Part Build Rating . | . . . . . . . . . . . Part Studies Acquired . | . . . . . . . . . . . Parts Repaired 1 | . . . . . . . . . . 1 Time 44 | . . . . . . . . . . 44 Parts Recycled . | . . . . . . . . . . . Recycled Matter . | . . . . . . . . . . . Retrieved Matter . | . . . . . . . . . . . Retrieved Components 8 | . . . . . 8 . . . . . Parts Scanalyzed . | . . . . . . . . . . . Part Schematics Acquired . | . . . . . . . . . . . Parts Damaged . | . . . . . . . . . . . Bothacking | -11 -10 -10 -8 -8 -6 -6 -6 -6 -5 -5 ------------ Run | Yrd Mat Sub Rec Scr Fac Low Low Dat Pro Fac Used RIF Installer . | . . . . . . . . . . . Robots Hacked . | . . . . . . . . . . . Non-combat . | . . . . . . . . . . . Combat . | . . . . . . . . . . . Robot Hacks Applied . | . . . . . . . . . . . Relay Couplers Released . | . . . . . . . . . . . Fabnet Peak Effective % . | . . . . . . . . . . . Robots Rewired 1 | . . . . . . . . . 1 . Allies Hacked . | . . . . . . . . . . . Hacks Repelled . | . . . . . . . . . . . Allies | -11 -10 -10 -8 -8 -6 -6 -6 -6 -5 -5 -------- Run | Yrd Mat Sub Rec Scr Fac Low Low Dat Pro Fac Total Allies 2 | . . . . . . . . . 2 . Largest Group 1 | . . . . . . . . . 1 . Highest-Rated Group 96 | . . . . . . . . . 96 . Highest-Rated Ally 96 | . . . . . . . . . 96 . Initial UFD Resources 27 | . . . . . 23 23 23 23 27 27 Total Orders 1 | . . . . . . . . . . 1 EXPLORE 1 | . . . . . . . . . . 1 Ally Attacks 14 | . . . . . . . . . 14 . Total Damage 510 | . . . . . . . . . 510 . Kills . | . . . . . . . . . . . Allies Corrupted . | . . . . . . . . . . . Allies Melted . | . . . . . . . . . . . Intel | -11 -10 -10 -8 -8 -6 -6 -6 -6 -5 -5 ------- Run | Yrd Mat Sub Rec Scr Fac Low Low Dat Pro Fac Active Infowar (turns) 9609 | 52 106 2110 . . 2194 1168 1273 124 1304 1278 Optics 7336 | . . . . . 2189 1168 1273 124 1304 1278 Sensors 5347 | . . 31 . . 1350 1066 1154 124 971 651 Terrain 5320 | . . 2079 . . . 1119 1156 124 842 . Seismic 158 | 52 106 . . . . . . . . . Machine Analysis 4 | . . . . . 4 . . . . . Robot Analysis Total . | . . . . . . . . . . . Derelict Logs Recovered 11 | . . 2 . 5 . 1 1 . 2 . Drone Launches 2 | . . . . . . . . . . 2 Drone Recoveries 1 | . . . . . . . . . . 1 Exploration | -11 -10 -10 -8 -8 -6 -6 -6 -6 -5 -5 ------------- Run | Yrd Mat Sub Rec Scr Fac Low Low Dat Pro Fac Turns Passed 15174 | 97 982 3269 771 2616 2292 1168 1273 124 1304 1278 Spaces Moved 8850 | 43 359 1104 568 2103 1402 919 710 102 671 869 Core 5 | 5 . . . . . . . . . . Treads 1419 | 38 359 1022 . . . . . . . . Legs 3631 | . . . . . 1330 919 710 102 570 . Wheels 2875 | . . 82 568 2103 72 . . . . 50 Hover 920 | . . . . . . . . . 101 819 Flight . | . . . . . . . . . . . Fastest Speed 50 | 50 160 130 117 105 110 120 120 120 59 53 Average Speed 140 | 147 205 235 124 122 134 122 121 120 115 108 Slowest Speed 250 | 160 240 250 145 145 190 190 190 120 190 129 Overloaded Moves . | . . . . . . . . . . . Propulsion Burnouts . | . . . . . . . . . . . Robots Hopped . | . . . . . . . . . . . Potential Cave-ins . | . . . . . . . . . . . Cave-ins Triggered . | . . . . . . . . . . . Exploration Rate (%) 60 | 3 49 49 99 91 26 97 74 75 82 16 Regions Visited 10 Branch Regions 7 Pre-discovered Areas 8 | . . 1 5 1 . . . 1 . . Known Exits Taken 6 | . . 1 . . 1 1 1 1 1 . Unknown Exits Taken 4 | 1 1 . 1 1 . . . . . . Scrap Searched 26 | . . 5 . 10 . 5 4 . 2 . Spaces Dug 47 | . 2 13 . . 7 3 1 . 9 12 Terrain Destroyed 174 | . 2 19 1 . 15 3 4 . 104 26 Melee 18 | . . . . . 7 2 1 . 8 . Projectile 68 | . 2 19 1 . 8 1 3 . 8 26 AOE 86 | . . . . . . . . . 86 . Terrain Rammed . | . . . . . . . . . . . Walls Destroyed . | . . . . . . . . . . . Machines Disabled . | . . . . . . . . . . . Actions | -11 -10 -10 -8 -8 -6 -6 -6 -6 -5 -5 --------- Run | Yrd Mat Sub Rec Scr Fac Low Low Dat Pro Fac Total 10935 | 61 496 1581 607 2164 1680 951 1094 103 1097 1101 Wait 1141 | . 28 332 11 . 81 3 333 . 306 47 Move 8840 | 42 358 1103 567 2102 1401 918 709 101 670 869 Hop . | . . . . . . . . . . . Pick Up 117 | 5 24 16 3 15 16 2 10 . 6 20 Fast Attach 60 | 7 2 3 3 7 22 4 . 1 . 11 Attach 87 | . 4 7 . 4 12 3 9 . 15 33 Detach 57 | . 4 2 . 4 12 5 2 . 7 21 Swap 80 | . 7 27 2 7 17 1 3 . 14 2 Drop 110 | . 12 13 6 25 25 6 8 1 3 11 Fire 382 | 7 54 77 13 . 70 6 18 . 58 79 Melee 42 | . . . . . 20 3 2 . 9 8 Ram 2 | . . . 2 . . . . . . . Kick 4 | . . . . . 4 . . . . . Crush 4 | . 3 1 . . . . . . . . Escape Stasis . | . . . . . . . . . . . Rewire 9 | . . . . . . . . . 9 . Trap . | . . . . . . . . . . . Miscellaneous . | . . . . . . . . . . . Route ------- -11/Scrapyard -10/Materials (discovered 3 exits: [*Mat] / [*Min] / *Sub) -10/Subcaves (discovered 3 exits: [*Mat x2] / *Rec) -8/Recycling (discovered 2 exits: *Fac / *Scr) -8/Scraptown (discovered 2 exits: *Fac x2) -6/Factory (discovered 3 exits: Fac / *Low x2) -6/Lower Caves -6/Lower Caves (discovered 2 exits: *Fac / *Dat) -6/Data Miner -5/Proximity Caves -5/Factory (discovered 2 exits: *Fac x2) History --------- Turn | Location | Event 27 | -11/Scrapyard | Discovered new exit (range 16) 98 | -11/Scrapyard | Entered Materials 312 | -10/Materials | Build established: Mutant 334 | -10/Materials | Discovered new exit (range 12) 798 | -10/Materials | Derelicts attacked the area 819 | -10/Materials | Discovered new exit (range 16) 1024 | -10/Materials | Discovered new exit (range 7) 1080 | -10/Materials | Entered Subcaves 1110 | -10/Subcaves | A swath of the cavern ceiling suddenly collapsed 1474 | -10/Subcaves | Visited 4L-MR0's lab 1495 | -10/Subcaves | Found Prototype Device 1495 | -10/Subcaves | Identified Sfc. Transmogrifier 1526 | -10/Subcaves | Found Rainbow Chip 1767 | -10/Subcaves | Discovered new exit (range 10) 2021 | -10/Subcaves | Learned 4 Materials zone layouts 2786 | -10/Subcaves | Disturbed a concealed Subdweller 3010 | -10/Subcaves | Identified exit to Recycling 3374 | -10/Subcaves | Visited Clippyterm 3381 | -10/Subcaves | Learned Factory emergency access door positions 3429 | -10/Subcaves | Discovered new exit (range 9) 3750 | -10/Subcaves | Ambushed by Subdweller buried in earth 3959 | -10/Subcaves | Learned location of Zion (-7) 3959 | -10/Subcaves | Met a Zionite searching for "candidates" 4349 | -10/Subcaves | Entered Recycling 4497 | -8/Recycling | Scanned before Scraplab entrance 4808 | -8/Recycling | Discovered new exit (range 7) 5070 | -8/Recycling | Build established: Scavenger-Mutant 5106 | -8/Recycling | Entered Scraplab 5117 | -8/Recycling | Discovered new exit (range 2) 5120 | -8/Recycling | Entered Scraptown 5371 | -8/Scraptown | Discovered new exit (range 13) 5409 | -8/Scraptown | Scanned Subdweller tech in exchange for log data 5413 | -8/Scraptown | Learned location of Armory (-3) 5416 | -8/Scraptown | Learned 8 Factory zone layouts 5419 | -8/Scraptown | Learned 12 Factory zone layouts 5844 | -8/Scraptown | Visited CPS Storage 5884 | -8/Scraptown | Visited Shadow of the Wyrm 5904 | -8/Scraptown | Visited Bundlers 5931 | -8/Scraptown | Build established: Mutant 5987 | -8/Scraptown | Visited The Evicted 6014 | -8/Scraptown | Visited Red Mages 6068 | -8/Scraptown | Visited TADAMA 6226 | -8/Scraptown | Visited Assassins FH 6244 | -8/Scraptown | Visited UFD Registry 6244 | -8/Scraptown | Registered with UFD as "Microgrid" 6358 | -8/Scraptown | Guru changed UFD alias to "Arcwarp" 6481 | -8/Scraptown | Visited Research Penetration Think Tank 6523 | -8/Scraptown | Visited LU-1G1's Boring Crew 6587 | -8/Scraptown | Visited Botcube Research 6638 | -8/Scraptown | Delivered Scrap Shield to a Scientist 6757 | -8/Scraptown | Visited Junk Cannon Lab 6765 | -8/Scraptown | Found Prototype Special Weapon 6765 | -8/Scraptown | Identified Junk Cannon 6803 | -8/Scraptown | Visited Infowarlord's Domain 6809 | -8/Scraptown | Found Exp. Signal Interpreter 6856 | -8/Scraptown | Visited Scrap Suit Storage 6914 | -8/Scraptown | Visited DA-N13 Charitable Foundation 6926 | -8/Scraptown | Found DCF Scrap (27 items) 7037 | -8/Scraptown | Visited Curators Association 7240 | -8/Scraptown | Build established: Derelict-Mutant 7619 | -8/Scraptown | Visited Modified Component R&D 7733 | -8/Scraptown | Discovered new exit (range 3) 7736 | -8/Scraptown | Entered Factory 7736 | -6/Factory | Evolved 8 slots: Power x1, Propulsion x3, Utility x4 7737 | -6/Factory | Identified exit to Lower Caves 7738 | -6/Factory | Identified exit to Factory 7807 | -6/Factory | Identified exit to DSF 8472 | -6/Factory | Attached Rainbow Chip, gained temporary slots: Power, Propulsion, Utility, Weapon 8782 | -6/Factory | Build established: Derelict-Assassin 9519 | -6/Factory | Garrison activated, responded to threat 9860 | -6/Factory | Build established: Assassin 10028 | -6/Factory | Entered Lower Caves 10030 | -6/Lower Caves | UFD Scientist delivered a prototype 10048 | -6/Lower Caves | Found Prototype Protection 10048 | -6/Lower Caves | Identified Enh. Scrap Shield 10093 | -6/Lower Caves | Learned Factory stockpile data 10417 | -6/Lower Caves | Build established: Scavenger-Assassin 10697 | -6/Lower Caves | Encountered a Warlord checkpoint 10769 | -6/Lower Caves | Discovered new exit (range 11) 11195 | -6/Lower Caves | Identified exit to Lower Caves 11196 | -6/Lower Caves | Entered another Lower Caves area 11584 | -6/Lower Caves | Spotted B-75 Beast 11659 | -6/Lower Caves | Destroyed B-75 Beast 11763 | -6/Lower Caves | Discovered exit to Factory (range 5) 11768 | -6/Lower Caves | Learned Factory machine intel 11990 | -6/Lower Caves | Build established: Assassin 12451 | -6/Lower Caves | Discovered new exit (range 4) 12455 | -6/Lower Caves | Identified exit to Data Miner 12469 | -6/Lower Caves | Entered Data Miner 12470 | -6/Data Miner | Discovered new exit (range 7) 12486 | -6/Data Miner | Met Data Miner 12520 | -6/Data Miner | Learned location of Section 7 (-2) 12520 | -6/Data Miner | Acquired the access code to Warlord's prototype stash 12543 | -6/Data Miner | Received God Mode back door access code from Data Miner 12591 | -6/Data Miner | Identified exit to Proximity Caves 12593 | -6/Data Miner | Entered Proximity Caves 12617 | -5/Proximity Caves | Learned location of 1 exit from Factory 12661 | -5/Proximity Caves | Spotter reported a threat 12684 | -5/Proximity Caves | Spotter reported a threat 12728 | -5/Proximity Caves | Learned 8 Factory zone layouts 12764 | -5/Proximity Caves | Spotter reported a threat 13057 | -5/Proximity Caves | Spotted B-75 Beast 13509 | -5/Proximity Caves | Attracted the attention of an 0b10 outpost 13601 | -5/Proximity Caves | Core integrity fell below 50% 13622 | -5/Proximity Caves | Lost 13 parts (3p4n3u3w) 13825 | -5/Proximity Caves | Attracted the attention of an 0b10 checkpoint 13825 | -5/Proximity Caves | System corruption reached 10% 13858 | -5/Proximity Caves | Escorted by Enhanced Grunt 13866 | -5/Proximity Caves | Discovered exit to Factory (range 20) 13878 | -5/Proximity Caves | Lost 3 parts (1n2u) 13897 | -5/Proximity Caves | Entered Factory 13897 | -5/Factory | Evolved 2 slots: Propulsion x1, Utility x1 13898 | -5/Factory | Identified exit to Factory 13901 | -5/Factory | Loaded intel: 250 machine locations 14161 | -5/Factory | Build established: Mutant 14197 | -5/Factory | Search patrols dispatched 14373 | -5/Factory | Repaired Imp. Medium Armor Plating? 14733 | -5/Factory | Lost 4 parts (1p2u1w) 15135 | -5/Factory | Lost 12 parts (2p4n3u3w) 15169 | -5/Factory | Core integrity fell below 50% 15175 | -5/Factory | Self-destructed Last Messages --------------- 15109_ U-05 Engineer builds a Wall. 15109_ R-10 Processor collects Imp. Thermal Generator. 15110_ Acquired Corrupted Med. Treads. 15113_ U-05 Engineer builds a Wall. 15116_ R-10 Processor collects Imp. Thermal Generator. 15120_ U-05 Engineer builds a Wall. 15120_ R-10 Processor collects Imp. Thermal Generator. 15123_ System corrupted: Com. Wheel rejected. 15123_ Acquired Com. Wheel. 15123_ R-10 Processor collects Imp. Thermal Generator. 15124_ Critical hit (Burn: +37). 15138_ Destroyed Hpw. Tractor Beam. 15140_ Destroyed Com. Wheel. 15144_ W-25 Informer sends out distress signal. 15144_ Critical hit (Burn: +37). 15157_ System corrupted: Component data lost. 15162_ Door malfunctions. 15170_ ALERT: Security rotation in progress. 15172_ Com. Wheel destroyed. 15174_ U-05 Engineer builds a Wall. Map ----- +----------------------------------------------------+ | | | | | | | | | | | | | | | | | | | | | | | | | | | | | | | | | ?????????####################????????????????????? | | ????????## """"" """" #????????????????????# | | ????????# """"" """ #????????????????????# | | ?????????# """ "" #????????????????##### | | ?????????# #???????????###### | | ?????????# #???????????# ## | | ?????????# % #???????????# ## | | ?????????# ! = #???????????# ## | | ?????????# % % = #???????????# ## | | ?????????##########/#####@##########????# ## | | ????###########?# + p #????# ## | | ????? # !# p #????# ## | | ???# """"""""" # !# ###### ## | | ???# + # # ## | | ???# """"""""" # # # ## | | ????? # #gg # ## | | ????############# # # ## | | ??????# ! # # # | | ??????# # # # ##### | | ??????# # # # ##### #???? | | ??????# """""" + # # #???# #???? | | ??????# """""" # # u # #####+##### | | ??????# """""" # #####+######## # | | ??????# """""" # ## #???# # | | ??????# # ##### # | | ??????######### # " # | | ??????????????# # "T # | | ??????????????# # % # | | ??????????????### ##### # | | ??????????############## #???# # | | ??????????# ##########??# # | | ??????????# """ #???????????# # | | ??????????# """"" #???????????# / | | ??????????# """"" #???????????# # | +----------------------------------------------------+ Best States ------------- Heat Dissipation 67 Energy Generation 28 Energy Capacity 475 Matter Stores 300 Matter Capacity 300 Sight Range 22 Robot Scan Range 16 Terrain Scan Range 16 Terrain Scan Density 110 Armor Coverage 950 Resistance: TH 10 Resistance: EM 25 Propulsion Shielding 66 Evasion (%) 55 Targeting Accuracy 8 Recoil Reduction 2 Offensive Hacking 14 Item Schematics ----------------- VSS Leg | -8/Recycling | Hacked Plasma Cutter | -8/Recycling | Hacked Combat Drone Bay | -6/Data Miner | Free Lgt. Regenerative Plating | -6/Data Miner | Free Cld. Nuclear Pulse Thruster | -6/Data Miner | Free Prc. Matter Filter | -6/Data Miner | Free Hvy. Proton Missile Launcher | -6/Data Miner | Free Adv. VSS Leg | -6/Data Miner | Free Adv. Trap Scanner | -6/Data Miner | Free Adv. Datajack | -6/Data Miner | Free Hyp. Mass Driver | -6/Data Miner | Free Robot Schematics ------------------ Y-54 Guardian | -6/Data Miner | Free E-15 Imp | -6/Data Miner | Free S-27 Virus | -6/Data Miner | Free B-60 Warrior | -6/Data Miner | Free G-67 Veteran | -6/Data Miner | Free A-15 Conveyor | -6/Data Miner | Free Fabricated ------------ Nothing Repaired ---------- Imp. Medium Armor Plating | 62% | -5/Factory Studied --------- None Alien Tech Used ----------------- None Achievements -------------- Longdome?! Loot Taster Challenges ------------ None Game ------ Seed TerrabombPlexusNeutralizer Manual? 0 Play Time 02:53:54 Cumulative 385.5 hours Start 2026.07.05 @ 23:49:53 End 2026.07.11 @ 17:01:23 Sessions 7 Manual Loads 0 Difficulty Rogue Special Mode None Game No. 110 Rogue 110 Adventurer 0 Explorer 0 Win Type - Total 3 Types 3/0/0/0/0/0/0/0/0/0 Lore% 70 Gallery% 62 Achievement% 52 Wizard Run 0 Options --------- Layout 0 ASCII 1 Keyboard 1 Movement Arrows Keybinds 0 Fullscreen 1 Font 24/Smallcaps Map View 76x50 Zoom Use 0% Tactical HUD 1 Map Filters NONE Filters NONE Steam 1 RUN: 42040167-c243-4839-8a71-34c08c5f6ac7